{"text_format":"1","workbook":"xlsx","n_sheets":4,"sheets":["Walkthrough Help","Master Sheet","Help","RAMS Definitioner"],"not_rendered":{"charts":0,"images":6,"macros":1,"external_links":1,"defined_names":85,"comments":1,"pivot_tables":0},"unopened":[],"bounds":{"document_bytes":16777216,"sheet_cells":100000,"rows_first":2000,"rows_last":500,"rows_between":2000,"halvings":0,"cell_chars":16384,"cell_head_chars":4096},"cells_cut":0,"cells_raw":0,"read":"whole","date_system":"1900"}

{"sheet":"Walkthrough Help","index":0,"n_rows":6,"n_cols":2,"rows_kept":6,"cut":false,"hidden":false,"merged":[[5,1,12,11]]}
[]
[]
[]
[]
[]
[null,"IMPORTANT! MUST READ!"]

{"sheet":"Master Sheet","index":1,"n_rows":106,"n_cols":17,"rows_kept":106,"cut":false,"hidden":false,"merged":[[27,1,27,2],[28,1,28,2],[29,1,29,2],[30,1,30,2],[31,1,31,2],[32,1,32,2],[13,1,13,2],[3,13,3,14],[3,1,3,4],[3,5,3,7],[8,1,8,2],[9,1,9,2],[10,1,10,2],[11,1,11,2],[12,1,12,2],[3,8,3,12],[4,3,6,3],[4,4,6,4],[4,5,6,5],[4,6,6,6],[6,1,6,2],[38,1,38,2],[39,1,39,2],[40,1,40,2],[41,1,41,2],[42,1,42,2],[7,1,7,2],[34,1,34,2],[35,1,35,2],[36,1,36,2],[37,1,37,2],[14,1,14,2],[15,1,15,2],[16,1,16,2],[17,1,17,2],[18,1,18,2],[19,1,19,2],[20,1,20,2],[21,1,21,2],[22,1,22,2],[23,1,23,2],[33,1,33,2],[24,1,24,2],[25,1,25,2],[26,1,26,2],[48,1,48,2],[49,1,49,2],[50,1,50,2],[51,1,51,2],[52,1,52,2],[43,1,43,2],[44,1,44,2],[45,1,45,2],[46,1,46,2],[47,1,47,2],[58,1,58,2],[59,1,59,2],[60,1,60,2],[61,1,61,2],[62,1,62,2],[53,1,53,2],[54,1,54,2],[55,1,55,2],[56,1,56,2],[57,1,57,2],[68,1,68,2],[69,1,69,2],[70,1,70,2],[71,1,71,2],[72,1,72,2],[63,1,63,2],[64,1,64,2],[65,1,65,2],[66,1,66,2],[67,1,67,2],[78,1,78,2],[79,1,79,2],[80,1,80,2],[81,1,81,2],[82,1,82,2],[73,1,73,2],[74,1,74,2],[75,1,75,2],[76,1,76,2],[77,1,77,2],[3,16,3,19],[103,1,103,2],[104,1,104,2],[105,1,105,2],[98,1,98,2],[99,1,99,2],[100,1,100,2],[101,1,101,2],[102,1,102,2],[93,1,93,2],[94,1,94,2],[95,1,95,2],[96,1,96,2],[97,1,97,2],[88,1,88,2],[89,1,89,2],[90,1,90,2],[91,1,91,2],[92,1,92,2],[83,1,83,2],[84,1,84,2],[85,1,85,2],[86,1,86,2],[87,1,87,2]]}
[]
[]
[]
[null,"Functional hirachy (DS/EN ISO 14224) ",null,null,null,null,null,null,"Consequense Classification (Norsok Z-008)",null,null,null,null,"Activity type",null,"Comment to Master sheet","FMECA Sheet RAMS DIS 1,8"]
[null,"PLANT","Brødfabrikken","Equipment Category","Equipment Class","Lovpligtig vedligehold","Lovgivning",null,"Equipment","Safety","Environment","Operational","Production","Score (4-12)","FMECA Needed","Comment for general choices in master sheet"]
[null,"System","Grovbrød"]
[null,"Equipment "]
[null,"Opbevaringstank"]
[null,"Ovn",null,"Mechanical","Heaters_and_Boilers","No","Anden lovgivning",null,{"$f":"B9","v":"Ovn"},2,2,2,2,{"$f":"J9+K9+L9+M9","v":8},"Yes"]
[null,"Vaskemaskine",null,"Mechanical","Washing Machine","Yes","Maskindirektiv",null,"Vaskemaskine",2,1,3,3,9,"No"]
[null,"Minikran",null,"Mechanical","Cranes","Yes","Maskindirektiv",null,"Minikran",3,1,2,1,7,"Yes"]
[null,"CIP beholder",null,"Mechanical","Storage_Tanks","Yes","Anden lovgivning",null,"CIP beholder",2,1,1,2,null,"Yes","2 i profuktion, da der er god tid til udskiftning under produktionen, dog kritisk ved fejl under CIP"]
[null,null,null,null,null,null,null,null,0,null,null,null,null,0]
[null,null,null,null,null,null,null,null,0,null,null,null,null,0]
[null,null,null,null,null,null,null,null,0,null,null,null,null,0]
[null,null,null,null,null,null,null,null,0,null,null,null,null,0]
[null,null,null,null,null,null,null,null,0,null,null,null,null,0]
[null,null,null,null,null,null,null,null,0,null,null,null,null,0]
[null,null,null,null,null,null,null,null,0,null,null,null,null,0]
[null,null,null,null,null,null,null,null,0,null,null,null,null,0]
[null,null,null,null,null,null,null,null,0,null,null,null,null,0]
[null,null,null,null,null,null,null,null,0,null,null,null,null,0]
[null,null,null,null,null,null,null,null,0,null,null,null,null,0]
[null,null,null,null,null,null,null,null,0,null,null,null,null,0]
[null,null,null,null,null,null,null,null,0,null,null,null,null,0]
[null,null,null,null,null,null,null,null,0,null,null,null,null,0]
[null,null,null,null,null,null,null,null,0,null,null,null,null,0]
[null,null,null,null,null,null,null,null,0,null,null,null,null,0]
[null,null,null,null,null,null,null,null,0,null,null,null,null,0]
[null,null,null,null,null,null,null,null,0,null,null,null,null,0]
[null,null,null,null,null,null,null,null,0,null,null,null,null,0]
[null,null,null,null,null,null,null,null,0,null,null,null,null,0]
[null,null,null,null,null,null,null,null,0,null,null,null,null,0]
[null,null,null,null,null,null,null,null,0,null,null,null,null,0]
[null,null,null,null,null,null,null,null,0,null,null,null,null,0]
[null,null,null,null,null,null,null,null,0,null,null,null,null,0]
[null,null,null,null,null,null,null,null,0,null,null,null,null,0]
[null,null,null,null,null,null,null,null,0,null,null,null,null,0]
[null,null,null,null,null,null,null,null,0,null,null,null,null,0]
[null,null,null,null,null,null,null,null,{"$f":"B40","v":0},null,null,null,null,0]
[null,null,null,null,null,null,null,null,0,null,null,null,null,0]
[null,null,null,null,null,null,null,null,0,null,null,null,null,0]
[null,null,null,null,null,null,null,null,0,null,null,null,null,0]
[null,null,null,null,null,null,null,null,0,null,null,null,null,0]
[null,null,null,null,null,null,null,null,0,null,null,null,null,0]
[null,null,null,null,null,null,null,null,0,null,null,null,null,0]
[null,null,null,null,null,null,null,null,0,null,null,null,null,0]
[null,null,null,null,null,null,null,null,0,null,null,null,null,0]
[null,null,null,null,null,null,null,null,0,null,null,null,null,0]
[null,null,null,null,null,null,null,null,0,null,null,null,null,0]
[null,null,null,null,null,null,null,null,0,null,null,null,null,0]
[null,null,null,null,null,null,null,null,0,null,null,null,null,0]
[null,null,null,null,null,null,null,null,0,null,null,null,null,0]
[null,null,null,null,null,null,null,null,0,null,null,null,null,0]
[null,null,null,null,null,null,null,null,0,null,null,null,null,0]
[null,null,null,null,null,null,null,null,0,null,null,null,null,0]
[null,null,null,null,null,null,null,null,0,null,null,null,null,0]
[null,null,null,null,null,null,null,null,0,null,null,null,null,0]
[null,null,null,null,null,null,null,null,0,null,null,null,null,0]
[null,null,null,null,null,null,null,null,0,null,null,null,null,0]
[null,null,null,null,null,null,null,null,0,null,null,null,null,0]
[null,null,null,null,null,null,null,null,0,null,null,null,null,0]
[null,null,null,null,null,null,null,null,0,null,null,null,null,0]
[null,null,null,null,null,null,null,null,0,null,null,null,null,0]
[null,null,null,null,null,null,null,null,0,null,null,null,null,0]
[null,null,null,null,null,null,null,null,0,null,null,null,null,0]
[null,null,null,null,null,null,null,null,0,null,null,null,null,0]
[null,null,null,null,null,null,null,null,0,null,null,null,null,0]
[null,null,null,null,null,null,null,null,0,null,null,null,null,0]
[null,null,null,null,null,null,null,null,0,null,null,null,null,0]
[null,null,null,null,null,null,null,null,0,null,null,null,null,{"$f":"J71+K71+L71+M71","v":0}]
[null,null,null,null,null,null,null,null,{"$f":"B72","v":0},null,null,null,null,0]
[null,null,null,null,null,null,null,null,0,null,null,null,null,0]
[null,null,null,null,null,null,null,null,0,null,null,null,null,0]
[null,null,null,null,null,null,null,null,0,null,null,null,null,0]
[null,null,null,null,null,null,null,null,0,null,null,null,null,0]
[null,null,null,null,null,null,null,null,0,null,null,null,null,0]
[null,null,null,null,null,null,null,null,0,null,null,null,null,0]
[null,null,null,null,null,null,null,null,0,null,null,null,null,0]
[null,null,null,null,null,null,null,null,0,null,null,null,null,0]
[null,null,null,null,null,null,null,null,0,null,null,null,null,0]
[null,null,null,null,null,null,null,null,0,null,null,null,null,0]
[null,null,null,null,null,null,null,null,0,null,null,null,null,0]
[null,null,null,null,null,null,null,null,0,null,null,null,null,0]
[null,null,null,null,null,null,null,null,0,null,null,null,null,0]
[null,null,null,null,null,null,null,null,0,null,null,null,null,0]
[null,null,null,null,null,null,null,null,0,null,null,null,null,0]
[null,null,null,null,null,null,null,null,0,null,null,null,null,0]
[null,null,null,null,null,null,null,null,0,null,null,null,null,0]
[null,null,null,null,null,null,null,null,0,null,null,null,null,0]
[null,null,null,null,null,null,null,null,0,null,null,null,null,0]
[null,null,null,null,null,null,null,null,0,null,null,null,null,0]
[null,null,null,null,null,null,null,null,0,null,null,null,null,0]
[null,null,null,null,null,null,null,null,0,null,null,null,null,0]
[null,null,null,null,null,null,null,null,0,null,null,null,null,0]
[null,null,null,null,null,null,null,null,0,null,null,null,null,0]
[null,null,null,null,null,null,null,null,0,null,null,null,null,0]
[null,null,null,null,null,null,null,null,0,null,null,null,null,0]
[null,null,null,null,null,null,null,null,{"$f":"B99","v":0},null,null,null,null,0]
[null,null,null,null,null,null,null,null,0,null,null,null,null,0]
[null,null,null,null,null,null,null,null,0,null,null,null,null,0]
[null,null,null,null,null,null,null,null,0,null,null,null,null,0]
[null,null,null,null,null,null,null,null,0,null,null,null,null,0]
[null,null,null,null,null,null,null,null,0,null,null,null,null,0]
[null,null,null,null,null,null,null,null,0,null,null,null,null,0]
[null,null,null,null,null,null,null,null,0,null,null,null,null,0]

{"sheet":"Help","index":2,"n_rows":1,"n_cols":8,"rows_kept":1,"cut":false,"hidden":false,"merged":[[0,7,2,9]]}
[null,null,null,null,null,null,null,"Taxonomic hierachy"]

{"sheet":"RAMS Definitioner","index":3,"n_rows":199,"n_cols":34,"rows_kept":199,"cut":false,"hidden":false,"merged":[[2,1,3,7],[15,1,15,7],[25,1,25,7],[187,11,187,13]]}
[]
[]
[null,"Failure Mechanism",null,null,null,null,null,null,null,"Hidden","Redundancy","Pattern","Consequences","Failure frequency","Regislatives"]
[null,null,null,null,null,null,null,null,null,"Yes","A - Passive","A - Bathtub",1,"Unlikely, ≤0,010 per thousand","Ingen krav"]
[null,"Mechanism","Mechanical Failure","Material Failure","Instrument Failure","Electrical Failure","External Influence","Miscellaneous",null,"No","B - Active","B - Wear out",2,"Low, 0,5 per thousand","El lovgivning"]
[null,"Mechanical_failure","General","General","General","General","General","General",null,null,"C - Mixed","C - Fatigue",3,"Occasional, 5 per thousand","ATEX direktiv"]
[null,"Material_failure","Leakage","Cavitation","Control Failure","Short Circuiting","Blockage/Plugged","No Cause Found",null,null,null,"D - Initial break in period",null,"High. 20 per thousand","PED direktiv"]
[null,"Instrument_failure","Vibration","Corrosion","No Signal/Indication/Alarm","Open Circuit","Contamination","Combined Causes",null,null,null,"E - Random",null,"Very high, ≥ 100 per thousand","Maskindirektiv"]
[null,"Electrical_failure","Clearance/allignment Failure","Erosion","Out of Adjustment","No Power/Voltage","Miscellaneous External Influnces","Other",null,null,null,"F - Infant mortality",null,null,"Olietank bekendtgørelse"]
[null,"External_Influence","Deformation","Wear","Software Error","Faulty Power/Voltage",null,"Unknown",null,null,null,null,null,null,"Anden lovgivning"]
[null,"Miscellaneous","Looseness","Breakage","Common Cause/Common mode failure","Earth/Isolation Fault"]
[null,null,"Sticking","Fatigue"]
[null,null,null,"Overheating"]
[null,null,null,"Burst",null,null,null,null,null,null,null,"Combustion Engines","Compressors","Electric Generators","Electric Motors","Gas Turbines","Pumps","Steam Turbines","Turboexpanders","Blowers and Fans","Centrifuges","Liquid Expanders","Mixers"]
[null,null,null,null,null,null,null,null,null,null,null,"Abnormal instrument reading","Abnormal instrument reading","Abnormal instrument reading","Abnormal instrument reading","Abnormal instrument reading","Abnormal instrument reading","Abnormal instrument reading","Abnormal instrument reading","Abnormal instrument reading","Abnormal instrument reading","Abnormal instrument reading","Abnormal instrument reading"]
[null,"Failure Cause",null,null,null,null,null,null,null,null,null,"Breakdown","Breakdown","Breakdown","Breakdown","Breakdown","Breakdown","Breakdown","Breakdown","Breakdown","Breakdown","Breakdown","Breakdown"]
[null,"Cause","Design-Related-Causes","Fabrication/Installation-Related Causes","Failure Related to Operation/Maintenance","Failure Related to Management","Miscellaneous_",null,null,null,null,"Erratic output","Erratic output","External leakage - utility medium","Erratic output","Erratic output","Erratic output","Erratic output","Erratic output","Erratic output","Erratic output","Erratic output","Erratic output"]
[null,"Design_Related","General","General","General","General","Miscellaneous-general",null,null,null,null,"External leakage - fuel","External leakage - process medium","Failure to start on demand","External leakage - utility medium","External leakage - fuel","External leakage - process medium","External leakage - fuel","External leakage - process medium","External leakage - fuel","External leakage - fuel","External leakage - fuel","External leakage - fuel"]
[null,"Fabrication_or_Installation_Related","Improper capacity","Fabrication failure","Off-Design service","Documentation error","No cause found",null,null,null,null,"External leakage - utility medium","External leakage - utility medium","Low output","Failure to start on demand","External leakage - process medium","External leakage - utility medium","External leakage - process medium","External leakage - utility medium","External leakage - process medium","External leakage - process medium","External leakage - process medium","External leakage - process medium"]
[null,"Operation_or_Installation_Related","Improper material","Installation failure","Operation error","Management error","Common cause",null,null,null,null,"Failure to start on demand","Failure to start on demand","Noise","High output","External leakage - utility medium","Failure to start on demand","External leakage - utility medium","Failure to start on demand","External leakage - utility medium","External leakage - utility medium","External leakage - utility medium","External leakage - utility medium"]
[null,"Management_Related",null,null,"Maintenance error",null,"Combined causes",null,null,null,null,"High output","High output","Overheating","Low output","Failure to start on demand","High output","Failure to start on demand","High output","Failure to start on demand","Failure to start on demand","Failure to start on demand","Failure to start on demand"]
[null,"Misc.",null,null,"Expected wear and tear",null,"Other unit/cascading failure",null,null,null,null,"Internal leakage","Internal leakage","Parameter deviation","Noise","High output","Internal leakage","High output","Internal leakage","High output","High output","High output","High output"]
[null,null,null,null,null,null,"Other",null,null,null,null,"Low output","Low output","Minor in-service problems","Overheating","Internal leakage","Low output","Internal leakage","Low output","Internal leakage","Internal leakage","Internal leakage","Internal leakage"]
[null,null,null,null,null,null,"Unknown",null,null,null,null,"Noise","Noise","Structu ral deficiency","Parameter deviation","Low output","Noise","Low output","Noise","Low output","Low output","Low output","Low output"]
[null,null,null,null,null,null,null,null,null,null,null,"Overheating","Overheating","Failure to stop on demand","Minor in-service problems","Noise","Overheating","Noise","Overheating","Noise","Noise","Noise","Noise"]
[null,"Equipment Category & Equipment Units",null,null,null,null,null,null,null,null,null,"Parameter deviation","Parameter deviation","Other","Structu ral deficiency","Overheating","Parameter deviation","Overheating","Parameter deviation","Overheating","Overheating","Overheating","Overheating"]
[null,"Category","Rotating","Mechanical","Electrical","Safety and Control","Utilities","Auxiliaries",null,null,null,"Plugged/ choked","Plugged/ choked","Unknown","Failure to stop on demand","Parameter deviation","Plugged/ choked","Parameter deviation","Plugged/ choked","Parameter deviation","Parameter deviation","Parameter deviation","Parameter deviation"]
[null,"Rotating","Combustion_Engines","Cranes","Uninteruptible_Power_Supply","Fire_Detection","Air_supply","HVAC",null,null,null,"Minor in-service problems","Minor in-service problems","Spurious stop","Other","Plugged/ choked","Minor in-service problems","Plugged/ choked","Minor in-service problems","Plugged/ choked","Plugged/ choked","Plugged/ choked","Plugged/ choked"]
[null,"Mechanical","Compressors","Heat_Exchangers","Power_Transformers","Gas_Detection","Heating/Cooling media",null,null,null,null,"Structu ral deficiency","Structu ral deficiency","Vibration","Unknown","Minor in-service problems","Structu ral deficiency","Minor in-service problems","Structu ral deficiency","Minor in-service problems","Minor in-service problems","Minor in-service problems","Minor in-service problems"]
[null,"Electrical","Electric_Generators","Heaters_and_Boilers","Frequency_Converters","Input_Devices","Hydraulic power units",null,null,null,null,"Failure to stop on demand","Failure to stop on demand",null,"Spurious stop","Structu ral deficiency","Other","Structu ral deficiency","Other","Structu ral deficiency","Structu ral deficiency","Structu ral deficiency","Structu ral deficiency"]
[null,"Safety_and_Control","Electric_Motors","Piping","Switchgears","Control_Logic_Units","Nitrogen supply equipment",null,null,null,null,"Other","Other",null,"Vibration","Other","Unknown","Other","Unknown","Failure to stop on demand","Failure to stop on demand","Failure to stop on demand","Failure to stop on demand"]
[null,"Utilities","Gas_Turbines","Pressure_Vessels",null,"Valves","Open/Closed drain systems",null,null,null,null,"Unknown","Unknown",null,null,"Unknown","Spurious stop","Unknown","Spurious stop","Other","Other","Other","Other"]
[null,"Auxiliaries","Pumps","Winches",null,"Nozzles",null,null,null,null,null,"Spurious stop","Spurious stop",null,null,"Spurious stop","Vibration","Spurious stop","Vibration","Unknown","Unknown","Unknown","Unknown"]
[null,null,"Steam_Turbines","Turrets",null,"Lifeboats",null,null,null,null,null,"Vibration","Vibration",null,null,"Vibration",null,"Vibration",null,"Spurious stop","Spurious stop","Spurious stop","Spurious stop"]
[null,null,"Turboexpanders","Swivels",null,null,null,null,null,null,null,null,null,null,null,null,null,null,null,"Vibration","Vibration","Vibration","Vibration"]
[null,null,null,"Storage_Tanks"]
[null,null,null,"Washing Machine"]
[null,null,null,null,null,null,null,null,null,null,null,null,null,null,null,null,null,null,null,null,null,null,null,null,null,null,"FAILURE MODES NOT FROM 14224 OR Norsok Z-008"]
[null,null,null,null,null,null,null,null,null,null,null,"Cranes","Heat_Exchangers","Heaters_and_Boilers","Piping","Pressure_Vessels","Winches","Turrets","Swivels","Storage_tanks","Conveyors_and_elevators","Filters_and_strainers","Loading_Arms","Onshore_Pipelines","Silos","Steam_Ejectors","Air_supply","Heating/Cooling units","Hydraulic Power Units","Nitrogen Supply Equipment","Open/Closed Drain Systems",null,null,"HVAC"]
[null,null,null,null,null,null,null,null,null,null,null,"Abnormal instrument reading","Abnormal instrument reading","Abnormal instrument reading","Abnormal instrument reading","Abnormal instrument reading","Abnormal instrument reading","Abnormal instrument reading","Abnormal instrument reading","Abnormal instrument reading","Abnormal instrument reading","Abnormal instrument reading","Abnormal instrument reading","Abnormal instrument reading","Abnormal instrument reading","Abnormal instrument reading","Internal Leakage","Abnormal instrument reading","External leakage","Internal Leakage","Sludge Build-up",null,null,"Minor In-service Problems"]
[null,null,null,null,null,null,null,null,null,null,null,"Breakdown","External leakage - process medium","External leakage - process medium","Breakdown","External leakage - process medium","Breakdown","Failure to connect","External leakage - process medium","External leakage - process medium","Breakdown","Breakdown","Breakdown","Breakdown","Breakdown","Breakdown","External Leakage","External leakage","Internal leakage","External Leakage","Plugged/Choked",null,null,"Insufficient heat transfer"]
[null,null,null,null,null,null,null,null,null,null,null,"External leakage - utility medium","External leakage - utility medium","External leakage - utility medium","External leakage - process medium","External leakage - utility medium","External leakage - utility medium","Failure to rotate","External leakage - utility medium","External leakage - utility medium","External leakage - process medium","External leakage - process medium","External leakage - process medium","External leakage - process medium","External leakage - process medium","External leakage - process medium","Minor In-service Problems","Internal leakage","Noise","Minor In-service Problems","Structural deficiency",null,null,"Low output"]
[null,null,null,null,null,null,null,null,null,null,null,"Internal leakage","Insufficient heat transfer","Insufficient heat transfer","External leakage - utility medium","Insufficient heat transfer","Failure to rotate","Fa il ure to disconnect","Failure to connect","Insufficient heat transfer","External leakage - utility medium","External leakage - utility medium","External leakage - utility medium","External leakage - utility medium","External leakage - utility medium","External leakage - utility medium","Other","Insufficient heat transfer","Minor In-Service Problems","Other","Minor In-service Problems",null,null,"Internal Leakage"]
[null,null,null,null,null,null,null,null,null,null,null,"Failure to rotate","Internal leakage","Internal leakage","Internal leakage","Other","Fa il ure to starton demand","Failure to function as intended","Internal leakage","Internal leakage","Failure to connect","Failure to connect","Failure to connect","Failure to connect","Failure to connect","Failure to connect","Abnormal Instrument Reading","Other","Insufficient Heat Transfer","Abnormal Instrument Reading","External Leakage",null,null,"External Leakage"]
[null,null,null,null,null,null,null,null,null,null,null,"Failure to function as intended","Other","Overheating","Noise","Parameter deviation","Load drop","Loss of buoyancy","Failure to rotate","Failure in lightning protection system","Insufficient heat transfer","Insufficient heat transfer","Insufficient heat transfer","Insufficient heat transfer","Insufficient heat transfer","Insufficient heat transfer","Noise","Parameter deviation","Sludge Build-up","Noise","Internal Leakage",null,null,"Sludge Build-up"]
[null,null,null,null,null,null,null,null,null,null,null,"Fa il ure to starton demand","Parameter deviation","Other","Overheating","Plugged/ choked","Low output","Mooring failure","Failure to function as intended","Loss of buoyancy","Internal leakage","Internal leakage","Internal leakage","Internal leakage","Internal leakage","Internal leakage","Plugged/Choked","Plugged/ choked","Plugged/Choked","Plugged/Choked",null,null,null,"Overheating"]
[null,null,null,null,null,null,null,null,null,null,null,"Load drop","Plugged/ choked","Parameter deviation","Other","Sludge build -up","Noise","Noise","Low oil supply press ure","Other","Failure in lightning protection system","Failure in lightning protection system","Failure in lightning protection system","Failure in lightning protection system","Failure in lightning protection system","Failure in lightning protection system","Structural deficiency","Mi nor in-service problems","Parameter Deviation","Structural deficiency",null,null,null,"Fail to start on demand"]
[null,null,null,null,null,null,null,null,null,null,null,"Noise","Mi nor in-service problems","Plugged/ choked","Parameter deviation","Mi nor in-service problems","Overheating","Other","Other","Parameter deviation","Failure to rotate","Failure to rotate","Failure to rotate","Failure to rotate","Failure to rotate","Failure to rotate","Low output","Structural deficiency","Structural Deficiency",null,null,null,null,"Structural deficiency"]
[null,null,null,null,null,null,"Sub Unit",null,null,null,null,"Overheating","Structural deficiency","Mi nor in-service problems","Plugged/ choked","Structural deficiency","Other","Parameter deviation","Parameter deviation","Plugged/ choked","Fa il ure to disconnect","Fa il ure to disconnect","Fa il ure to disconnect","Fa il ure to disconnect","Fa il ure to disconnect","Fa il ure to disconnect",null,"Unknown","Vibration"]
[null,null,null,null,null,null,1,null,null,null,null,"Other","Unknown","Structural deficiency","Power/signal transmission failure","Unknown","Parameter deviation","Minor in-service problems","Plugged/ choked","Sludge build -up","Failure to function as intended","Failure to function as intended","Failure to function as intended","Failure to function as intended","Failure to function as intended","Failure to function as intended",null,"Low output","Low Supply Pressure"]
[null,null,null,null,null,null,2,null,null,null,null,"Parameter deviation",null,"Unknown","Mi nor in-service problems",null,"Mi nor in-service problems","Structural deficiency","Power/signal transmission failure","Minor in-service problems","Fa il ure to starton demand","Fa il ure to starton demand","Fa il ure to starton demand","Fa il ure to starton demand","Fa il ure to starton demand","Fa il ure to starton demand",null,"Structural deficiency","Fail to start on demand"]
[null,null,null,null,null,null,3,null,null,null,null,"Mi nor in-service problems",null,null,"Structural deficiency",null,"Slippage","Unknown","Mi nor in-service problems","Structural deficiency","Low oil supply press ure","Low oil supply press ure","Low oil supply press ure","Low oil supply press ure","Low oil supply press ure","Low oil supply press ure",null,"Vibration"]
[null,null,null,null,null,null,4,null,null,null,null,"Slippage",null,null,"Unknown",null,"Spurious operation",null,"Structural deficiency","Unknown","Load drop","Load drop","Load drop","Load drop","Load drop","Load drop"]
[null,null,null,null,null,null,5,null,null,null,null,"Spurious operation",null,null,"Vibration",null,"Structural deficiency",null,"Unknown",null,"Loss of buoyancy","Loss of buoyancy","Loss of buoyancy","Loss of buoyancy","Loss of buoyancy","Loss of buoyancy"]
[null,null,null,null,null,null,6,null,null,null,null,"Structural deficiency",null,null,null,null,"Failure to s top on demand",null,null,null,"Low output","Low output","Low output","Low output","Low output","Low output"]
[null,"Main Functions","Sub functions",null,null,null,7,null,null,null,null,"Unknown",null,null,null,null,"Unknown",null,null,null,"Mooring failure","Mooring failure","Mooring failure","Mooring failure","Mooring failure","Mooring failure"]
[null,"Accumulation","Main task",null,null,null,null,null,null,null,null,"Vibration",null,null,null,null,"Vibration",null,null,null,"Noise","Noise","Noise","Noise","Noise","Noise"]
[null,"Cementing","Pressure, relief",null,null,null,null,null,null,null,null,null,null,null,null,null,null,null,null,null,"Overheating","Overheating","Overheating","Overheating","Overheating","Overheating"]
[null,"Circulating ","Shut down, process",null,null,null,null,null,null,null,null,null,null,null,null,null,null,null,null,null,"Other","Other","Other","Other","Other","Other"]
[null,"Compressing","Shut down, equipment",null,null,null,null,null,null,null,null,null,null,null,null,null,null,null,null,null,"Parameter deviation","Parameter deviation","Parameter deviation","Parameter deviation","Parameter deviation","Parameter deviation"]
[null,"Cooling","Controlling",null,null,null,null,null,null,null,null,null,null,null,null,null,null,null,null,null,"Plugged/ choked","Plugged/ choked","Plugged/ choked","Plugged/ choked","Plugged/ choked","Plugged/ choked"]
[null,"Detecting","Monitoring",null,null,null,null,null,null,null,null,null,null,null,null,null,null,null,null,null,"Power/signal transmission failure","Power/signal transmission failure","Power/signal transmission failure","Power/signal transmission failure","Power/signal transmission failure","Power/signal transmission failure"]
[null,"Distributing","Local indication",null,null,null,null,null,null,null,null,null,null,null,null,null,null,null,null,null,"Sludge build -up","Sludge build -up","Sludge build -up","Sludge build -up","Sludge build -up","Sludge build -up"]
[null,"Drying","Manual shutoff",null,null,null,null,null,null,null,null,null,null,null,null,null,null,null,null,null,"Mi nor in-service problems","Mi nor in-service problems","Mi nor in-service problems","Mi nor in-service problems","Mi nor in-service problems","Mi nor in-service problems"]
[null,"Expanding",null,null,null,null,null,null,null,null,null,null,null,null,null,null,null,null,null,null,"Slippage","Slippage","Slippage","Slippage","Slippage","Slippage"]
[null,"Filling",null,null,null,null,null,null,null,null,null,null,null,null,null,null,null,null,null,null,"Spurious operation","Spurious operation","Spurious operation","Spurious operation","Spurious operation","Spurious operation"]
[null,"Filtering",null,null,null,null,null,null,null,null,null,null,null,null,null,null,null,null,null,null,"Structural deficiency","Structural deficiency","Structural deficiency","Structural deficiency","Structural deficiency","Structural deficiency"]
[null,"Fire fighting",null,null,null,null,null,null,null,null,null,null,null,null,null,null,null,null,null,null,"Failure to s top on demand","Failure to s top on demand","Failure to s top on demand","Failure to s top on demand","Failure to s top on demand","Failure to s top on demand"]
[null,"Generating",null,null,null,null,null,null,null,null,null,null,null,null,null,null,null,null,null,null,"Unknown","Unknown","Unknown","Unknown","Unknown","Unknown"]
[null,"Heating",null,null,null,null,null,null,null,null,null,null,null,null,null,null,null,null,null,null,"Vibration","Vibration","Vibration","Vibration","Vibration","Vibration"]
[null,"lnjecting"]
[null,"Life Saving"]
[null,"Lifting"]
[null,"Logging",null,null,null,null,null,null,null,null,null,"Uninteruptible Power Supply","Power Transformers","Frequency Converters","Switchgears","Power Cables and Terminators"]
[null,"Manoeuvring",null,null,null,null,null,null,null,null,null,"Erratic output","Abnormal instrument reading","Abnormal instrument reading","External leakage - utility medium","Abnormal instrument reading"]
[null,"Metering",null,null,null,null,null,null,null,null,null,"Faulty output frequency","External leakage - utility medium","Breakdown","Failure to close on demand","Breakdown"]
[null,"Pumping",null,null,null,null,null,null,null,null,null,"Faulty output voltage","Faulty output voltage","Delayed operation","Failure to function on demand","Delayed operation"]
[null,"Regenerating",null,null,null,null,null,null,null,null,null,"Failure to function on demand","Failure to function on demand","External leakage - utility medium","Failure to function as intended","External leakage - utility medium"]
[null,"Scrubbing",null,null,null,null,null,null,null,null,null,"Overheating","Internal leakage","Erratic output","Failure to open on demand","Erratic output"]
[null,"Separating",null,null,null,null,null,null,null,null,null,"Other","Overheating","Failure to function on demand","Noise","Faulty output frequency"]
[null,"Storing",null,null,null,null,null,null,null,null,null,"Parameter deviation","Other","Failure to function as intended","Overheating","Faulty output voltage"]
[null,"Transferring",null,null,null,null,null,null,null,null,null,"Minor in-service problems","Parameter deviation","Failure to regulate","Other","Failure to close on demand"]
[null,null,null,null,null,null,null,null,null,null,null,"Spurious operation","Plugged/ choked","High output","Spurious operation","Failure to function on demand"]
[null,null,null,null,null,null,null,null,null,null,null,"Unknown","Minor in-service problems","Internal leakage","Unknown","Failure to function as intended"]
[null,null,null,null,null,null,null,null,null,null,null,null,"Structural deficiency","Low output","Spurious stop","Failure to open on demand"]
[null,null,null,null,null,null,null,null,null,null,null,null,"Unknown","Overheating","Vibration","Failure to regulate"]
[null,null,null,null,null,null,null,null,null,null,null,null,null,"Other",null,"High output"]
[null,null,null,null,null,null,null,null,null,null,null,null,null,"Parameter deviation",null,"Internal leakage"]
[null,null,null,null,null,null,null,null,null,null,null,null,null,"Minor in-service problems",null,"Low output"]
[null,null,null,null,null,null,null,null,null,null,null,null,null,"Spurious operation",null,"Noise"]
[null,null,null,null,null,null,null,null,null,null,null,null,null,"Unknown",null,"Overheating"]
[null,null,null,null,null,null,null,null,null,null,null,null,null,"Spurious stop",null,"Other"]
[null,"A.A","A.B","A.C",null,null,null,null,null,null,null,null,null,null,null,"Parameter deviation"]
[null,1,11,111,null,null,null,null,null,null,null,null,null,null,null,"Plugged/ choked"]
[null,2,22,222,null,null,null,null,null,null,null,null,null,null,null,"Minor in-service problems"]
[null,3,33,333,null,null,null,null,null,null,null,null,null,null,null,"Spurious operation"]
[null,4,44,444,null,null,null,null,null,null,null,null,null,null,null,"Structural deficiency"]
[null,5,55,555,null,null,null,null,null,null,null,null,null,null,null,"Unknown"]
[null,6,66,666,null,null,null,null,null,null,null,null,null,null,null,"Spurious stop"]
[null,7,77,777,null,null,null,null,null,null,null,null,null,null,null,"Vibration"]
[]
[]
[]
[null,null,null,null,null,null,null,null,null,null,null,"Fire detection","Gas detection","Input devices","Control logic units","Valves","Nozzles","Lifeboats","Telecommunication","Flare Ignition","Fire-fighting Equipment","Inert-gas Equipment","Escape, Evacuation and Rescue","Emergency Communication Equipment"]
[null,null,null,null,null,null,null,null,null,null,null,"Erratic output","Erratic output","External leakage - process medium","Erratic output","Abnormal instrument reading","Delayed operation","Abnormal instrument reading","Abnormal instrument reading","Abnormal instrument reading","Abnormal instrument reading","Abnormal instrument reading","Abnormal instrument reading","Abnormal instrument reading"]
[null,null,null,null,null,null,null,null,null,null,null,"Failure to function on demand","Failure to function on demand","External leakage - utility medium","Failure to function on demand","Delayed operation","Failure to open on demand","Breakdown","Breakdown","Breakdown","Breakdown","Breakdown","Breakdown","Breakdown"]
[null,null,null,null,null,null,null,null,null,null,null,"High output","High output","Erratic output","High output","External leakage - process medium","Other","Delayed operation","Delayed operation","Delayed operation","Delayed operation","Delayed operation","Delayed operation","Delayed operation"]
[null,null,null,null,null,null,null,null,null,null,null,"Low output","Low output","Failure to function on demand","Low output","External leakage - utility medium","Plugged/ choked","External leakage - utility medium","External leakage - process medium","External leakage - process medium","External leakage - process medium","External leakage - process medium","External leakage - process medium","External leakage - process medium"]
[null,null,null,null,null,null,null,null,null,null,null,"No output","No output","High output","Mi nor in-service problems","Failure to close on demand","Mi nor in-service problems","Failure to function on demand","External leakage - utility medium","External leakage - utility medium","External leakage - utility medium","External leakage - utility medium","External leakage - utility medium","External leakage - utility medium"]
[null,"RAMS-Tool TODO:",null,null,null,null,null,null,null,null,null,"Other","Other","Low output","Spurious stop","Failure to open on demand","Spurious stop","Failure to start on demand","Erratic output","Erratic output","Erratic output","Erratic output","Erratic output","Erratic output"]
[null,"1. Kommentarfelter til Hidden, Redundancy, ",null,null,null,null,null,null,null,null,null,"Mi nor in-service problems","Spurious high alarm level","No output","Unknown","High output","Structural deficiency","Internal leakage","Failure to close on demand","Failure to close on demand","Failure to close on demand","Failure to close on demand","Failure to close on demand","Failure to close on demand"]
[null,"2. Tilføj muligheder under effects",null,null,null,null,null,null,null,null,null,"Spurious high alarm level","Spurious low alarm level","Other",null,"Internal leakage",null,"Load drop","Failure to function on demand","Failure to function on demand","Failure to function on demand","Failure to function on demand","Failure to function on demand","Failure to function on demand"]
[null,"3. Kig på Failure Rate",null,null,null,null,null,null,null,null,null,"Spurious low alarm level","Spurious stop","Mi nor in-service problems",null,"Leakage in closed position",null,"Low output","Failure to open on demand","Failure to open on demand","Failure to open on demand","Failure to open on demand","Failure to open on demand","Failure to open on demand"]
[null,"4. Proceduredokument, herunder hvilke standarder, henvisninger til annex'er, tabeller osv. og lav en procedure for brug",null,null,null,null,null,null,null,null,null,"Spurious stop","Unknown","Spurious stop",null,"Low output",null,"Noise","Failure to start on demand","Failure to start on demand","Failure to start on demand","Failure to start on demand","Failure to start on demand","Failure to start on demand"]
[null,"5. Færdiggør Criticalitetsanalysen",null,null,null,null,null,null,null,null,null,"Unknown",null,"Unknown",null,"Noise",null,"Overheating","High output","High output","High output","High output","High output","High output"]
[null,"6. Færdiggør valg af task",null,null,null,null,null,null,null,null,null,null,null,null,null,"Other",null,"Other","Internal leakage","Internal leakage","Internal leakage","Internal leakage","Internal leakage","Internal leakage"]
[null,"7. Valgmuligheder under maintainable Item",null,null,null,null,null,null,null,null,null,null,null,null,null,"Plugged/ choked",null,"In suffici ent power","Leakage in closed position","Leakage in closed position","Leakage in closed position","Leakage in closed position","Leakage in closed position","Leakage in closed position"]
[null,"8. Henvisninger/Excel-funktioner for Main function, Sub function, Consequence analysen osv.",null,null,null,null,null,null,null,null,null,null,null,null,null,"Mi nor in-service problems",null,"Power/signal transmission fai lure","Load drop","Load drop","Load drop","Load drop","Load drop","Load drop"]
[null,null,null,null,null,null,null,null,null,null,null,null,null,null,null,"Spurious stop",null,"Mi nor in-service problems","Low output","Low output","Low output","Low output","Low output","Low output"]
[null,null,null,null,null,null,null,null,null,null,null,null,null,null,null,"Structural deficiency",null,"Slippage","Noise","Noise","Noise","Noise","Noise","Noise"]
[null,null,null,null,null,null,null,null,null,null,null,null,null,null,null,"Unknown",null,"Spurious stop","No output","No output","No output","No output","No output","No output"]
[null,null,null,null,null,null,null,null,null,null,null,null,null,null,null,null,null,"Structural deficiency","Overheating","Overheating","Overheating","Overheating","Overheating","Overheating"]
[null,null,null,null,null,null,null,null,null,null,null,null,null,null,null,null,null,"Failure to stop on demand","Other","Other","Other","Other","Other","Other"]
[null,null,null,null,null,null,null,null,null,null,null,null,null,null,null,null,null,"Unknown","Plugged/ choked","Plugged/ choked","Plugged/ choked","Plugged/ choked","Plugged/ choked","Plugged/ choked"]
[null,null,null,null,null,null,null,null,null,null,null,null,null,null,null,null,null,"Spurious stop","In suffici ent power","In suffici ent power","In suffici ent power","In suffici ent power","In suffici ent power","In suffici ent power"]
[null,null,null,null,null,null,null,null,null,null,null,null,null,null,null,null,null,null,"Power/signal transmission fai lure","Power/signal transmission fai lure","Power/signal transmission fai lure","Power/signal transmission fai lure","Power/signal transmission fai lure","Power/signal transmission fai lure"]
[null,null,null,null,null,null,null,null,null,null,null,null,null,null,null,null,null,null,"Mi nor in-service problems","Mi nor in-service problems","Mi nor in-service problems","Mi nor in-service problems","Mi nor in-service problems","Mi nor in-service problems"]
[null,null,null,null,null,null,null,null,null,null,null,null,null,null,null,null,null,null,"Spurious high alarm level","Spurious high alarm level","Spurious high alarm level","Spurious high alarm level","Spurious high alarm level","Spurious high alarm level"]
[null,null,null,null,null,null,null,null,null,null,null,null,null,null,null,null,null,null,"Spurious low alarm level","Spurious low alarm level","Spurious low alarm level","Spurious low alarm level","Spurious low alarm level","Spurious low alarm level"]
[null,null,null,null,null,null,null,null,null,null,null,null,null,null,null,null,null,null,"Slippage","Slippage","Slippage","Slippage","Slippage","Slippage"]
[null,null,null,null,null,null,null,null,null,null,null,null,null,null,null,null,null,null,"Spurious operation","Spurious operation","Spurious operation","Spurious operation","Spurious operation","Spurious operation"]
[null,null,null,null,null,null,null,null,null,null,null,null,null,null,null,null,null,null,"Structural deficiency","Structural deficiency","Structural deficiency","Structural deficiency","Structural deficiency","Structural deficiency"]
[null,null,null,null,null,null,null,null,null,null,null,null,null,null,null,null,null,null,"Failure to stop on demand","Failure to stop on demand","Failure to stop on demand","Failure to stop on demand","Failure to stop on demand","Failure to stop on demand"]
[null,null,null,null,null,null,null,null,null,null,null,null,null,null,null,null,null,null,"Unknown","Unknown","Unknown","Unknown","Unknown","Unknown"]
[null,null,null,null,null,null,null,null,null,null,null,null,null,null,null,null,null,null,"Spurious stop","Spurious stop","Spurious stop","Spurious stop","Spurious stop","Spurious stop"]
[]
[]
[]
[]
[]
[]
[]
[]
[]
[]
[]
[]
[]
[]
[]
[]
[]
[]
[]
[]
[null,null,null,null,null,null,null,null,null,null,null,"Maintenance Types "]
[null,null,null,null,null,null,null,null,null,null,null,"Task","Sub Task","Improvement","Predetermined Maintenance","Condition Based Maintenance","Corrective Maintenance","Maintenance Activities"]
[null,null,null,null,null,null,null,null,null,null,null,"Preventive",null,"Improvement","Predetermined Maintenance","Predictive Maintenance","Immediate Corrective Maintenance","Inspection"]
[null,null,null,null,null,null,null,null,null,null,null,"Predetermined",null,null,null,"Non Predictive Condition Based Maintenance","Deferred Corrective Maintenance","Condition monitoring "]
[null,null,null,null,null,null,null,null,null,"Check",null,"Condition",null,null,null,null,null,"Compliance "]
[null,null,null,null,null,null,null,null,null,"Combination",null,"Predictiv",null,null,null,null,null,"Function check-out"]
[null,null,null,null,null,null,null,null,null,"Inspection",null,"Active",null,null,null,null,null,"Routine Maintenance"]
[null,null,null,null,null,null,null,null,null,"Modify",null,"Improvement",null,null,null,null,null,"Overhaul"]
[null,null,null,null,null,null,null,null,null,"Other",null,"Modification",null,null,null,null,null,"Fault diagnosis "]
[null,null,null,null,null,null,null,null,null,"Overhaul",null,"Modernization",null,null,null,null,null,"Fault localization "]
[null,null,null,null,null,null,null,null,null,"Service",null,"Corrective",null,null,null,null,null,"Restoation"]
[null,null,null,null,null,null,null,null,null,"Refit",null,"Deferred corrective",null,null,null,null,null,"Repair"]
[null,null,null,null,null,null,null,null,null,"Repair",null,"Scheduled",null,null,null,null,null,"Temporary Repair "]
[null,null,null,null,null,null,null,null,null,"Replace",null,"Opportunistic",null,null,null,null,null,"Rebuilding"]
[null,null,null,null,null,null,null,null,null,"Test",null,"Remote",null,null,null,null,null,"Exceptional "]
[null,null,null,null,null,null,null,null,null,null,null,"On Line",null,null,null,null,null,"Maintenance task preparation"]
[null,null,null,null,null,null,null,null,null,null,null,"On Site",null,null,null,null,null,"Maintenance schedule"]
[null,null,null,null,null,null,null,null,null,null,null,"Operator"]
[null,null,null,null,null,null,null,null,null,null,null,"Outsourcing "]
[]
[]
[]
[]
[null,null,null,null,null,null,null,null,null,null,null,null,null,null,null,null,null,"Check"]
[null,null,null,null,null,null,null,null,null,null,null,null,null,null,null,null,null,"Combination"]
[null,null,null,null,null,null,null,null,null,null,null,null,null,null,null,null,null,"Inspection"]
[null,null,null,null,null,null,null,null,null,null,null,null,null,null,null,null,null,"Modify"]
[null,null,null,null,null,null,null,null,null,null,null,null,null,null,null,null,null,"Other"]
[null,null,null,null,null,null,null,null,null,null,null,null,null,null,null,null,null,"Overhaul"]
[null,null,null,null,null,null,null,null,null,null,null,null,null,null,null,null,null,"Service"]
[null,null,null,null,null,null,null,null,null,"Check",null,null,null,null,null,null,null,"Refit"]
[null,null,null,null,null,null,null,null,null,"Combination",null,null,null,null,null,null,null,"Repair"]
[null,null,null,null,null,null,null,null,null,"Inspection",null,"Maintenance Acticity",null,null,null,null,null,"Replace"]
[null,null,null,null,null,null,null,null,null,"Modify",null,"Corrective","Preventive","Improvement",null,null,null,"Test"]
[null,null,null,null,null,null,null,null,null,"Other",null,"Replace","Replace","Improvement"]
[null,null,null,null,null,null,null,null,null,"Overhaul",null,"Repair","Modify"]
[null,null,null,null,null,null,null,null,null,"Service",null,"Modify","Adjust"]
[null,null,null,null,null,null,null,null,null,"Refit",null,"Adjust","Refit"]
[null,null,null,null,null,null,null,null,null,"Repair",null,"Refit","Service"]
[null,null,null,null,null,null,null,null,null,"Replace",null,"Check","Test"]
[null,null,null,null,null,null,null,null,null,"Test",null,"Overhaul","Inspection"]
[null,null,null,null,null,null,null,null,null,null,null,"Combination","Overhaul"]
[null,null,null,null,null,null,null,null,null,null,null,"Other","Combination"]
[null,null,null,null,null,null,null,null,null,null,null,null,"Other"]